[Event "Titled Tuesday Blitz November 30 2021"]
[White "Nakamura, Hikaru"]
[Black "Samunenkov, Ihor"]
[WhiteFideId "2016192"]
[BlackFideId "14187086"]
[WhiteElo "2884"]
[BlackElo "2348"]
[Result "1-0"]
[Round "08"]
[TimeControl "180+1"]
[Date "2021.11.30"]
[WhiteClock "0:01:06"]
[BlackClock "0:00:03"]

1. f4 {[%clk 0:03:00]}  d5 {[%clk 0:02:59]} 2. Nf3 {[%clk 0:03:01]}  c5 {[%clk 0:02:59]} 3. b3 {[%clk 0:03:01]}  g6 {[%clk 0:02:54]} 4. Bb2 {[%clk 0:03:00]}  Nf6 {[%clk 0:02:55]} 5. e3 {[%clk 0:03:01]}  Bg7 {[%clk 0:02:55]} 6. Be2 {[%clk 0:02:59]}  O-O {[%clk 0:02:55]} 7. O-O {[%clk 0:03:00]}  Nc6 {[%clk 0:02:56]} 8. Ne5 {[%clk 0:03:00]}  Qc7 {[%clk 0:02:27]} 9. Nxc6 {[%clk 0:02:58]}  Qxc6 {[%clk 0:02:26]} 10. Bf3 {[%clk 0:02:58]}  Bf5 {[%clk 0:02:22]} 11. d3 {[%clk 0:02:56]}  Rad8 {[%clk 0:02:20]} 12. Nd2 {[%clk 0:02:52]}  Qc8 {[%clk 0:02:19]} 13. Qe2 {[%clk 0:02:50]}  Bg4 {[%clk 0:02:12]} 14. e4 {[%clk 0:02:41]}  dxe4 {[%clk 0:02:01]} 15. dxe4 {[%clk 0:02:37]}  Bxf3 {[%clk 0:01:47]} 16. Nxf3 {[%clk 0:02:38]}  Qc6 {[%clk 0:01:46]} 17. Rfe1 {[%clk 0:02:36]}  e6 {[%clk 0:01:44]} 18. c4 {[%clk 0:02:31]}  b6 {[%clk 0:01:38]} 19. e5 {[%clk 0:02:29]}  Ne8 {[%clk 0:01:28]} 20. Ng5 {[%clk 0:02:27]}  Nc7 {[%clk 0:01:27]} 21. Ne4 {[%clk 0:02:27]}  Kh8 {[%clk 0:01:19]} 22. Rad1 {[%clk 0:02:25]}  Rd7 {[%clk 0:00:55]} 23. Rxd7 {[%clk 0:02:17]}  Qxd7 {[%clk 0:00:56]} 24. Rd1 {[%clk 0:02:17]}  Qe7 {[%clk 0:00:54]} 25. Rd6 {[%clk 0:02:17]}  Ne8 {[%clk 0:00:49]} 26. Rd3 {[%clk 0:02:17]}  f6 {[%clk 0:00:46]} 27. Qd2 {[%clk 0:02:04]}  fxe5 {[%clk 0:00:45]} 28. Rd7 {[%clk 0:02:04]}  Qh4 {[%clk 0:00:39]} 29. g3 {[%clk 0:02:04]}  Qg4 {[%clk 0:00:38]} 30. Rxg7 {[%clk 0:01:43]}  Nxg7 {[%clk 0:00:39]} 31. Bxe5 {[%clk 0:01:43]}  Qf5 {[%clk 0:00:36]} 32. Qe2 {[%clk 0:01:30]}  h6 {[%clk 0:00:31]} 33. g4 {[%clk 0:01:27]}  Qf7 {[%clk 0:00:29]} 34. Qd3 {[%clk 0:01:22]}  Qe7 {[%clk 0:00:22]} 35. Qh3 {[%clk 0:01:18]}  h5 {[%clk 0:00:15]} 36. gxh5 {[%clk 0:01:19]}  gxh5 {[%clk 0:00:13]} 37. Qxh5+ {[%clk 0:01:20]}  Kg8 {[%clk 0:00:14]} 38. Qg6 {[%clk 0:01:21]}  Rf5 {[%clk 0:00:08]} 39. Nf6+ {[%clk 0:01:05]}  Kf8 {[%clk 0:00:09]} 40. Nh7+ {[%clk 0:01:05]}  Kg8 {[%clk 0:00:09]} 41. Ng5 {[%clk 0:01:06]}  Kf8 {[%clk 0:00:03]} 42. Bxg7+ {[%clk 0:01:06]} 1-0


[Site "https://www.chess.com"]

[Event "Titled Tuesday Blitz November 30 2021"]
[White "Nikologorskiy, Konstantin"]
[Black "Arencibia Monduy, Antonio"]
[WhiteFideId "24111708"]
[BlackFideId "3507939"]
[WhiteElo "2346"]
[BlackElo "2589"]
[Result "1/2-1/2"]
[Round "08"]
[TimeControl "180+1"]
[Date "2021.11.30"]
[WhiteClock "0:00:02"]
[BlackClock "0:00:03"]

1. d4 {[%clk 0:03:00]}  e6 {[%clk 0:02:59]} 2. c4 {[%clk 0:02:58]}  d5 {[%clk 0:02:59]} 3. Nc3 {[%clk 0:02:57]}  c6 {[%clk 0:02:59]} 4. e3 {[%clk 0:02:57]}  Nf6 {[%clk 0:03:00]} 5. Nf3 {[%clk 0:02:57]}  Nbd7 {[%clk 0:03:00]} 6. Qc2 {[%clk 0:02:56]}  Be7 {[%clk 0:02:56]} 7. g4 {[%clk 0:02:56]}  dxc4 {[%clk 0:02:53]} 8. Bxc4 {[%clk 0:02:49]}  b5 {[%clk 0:02:51]} 9. Bd3 {[%clk 0:02:46]}  Nd5 {[%clk 0:02:49]} 10. Nxd5 {[%clk 0:02:42]}  cxd5 {[%clk 0:02:46]} 11. Bd2 {[%clk 0:02:41]}  Rb8 {[%clk 0:02:27]} 12. Rc1 {[%clk 0:02:38]}  h6 {[%clk 0:02:17]} 13. h4 {[%clk 0:02:36]}  a6 {[%clk 0:02:02]} 14. Rg1 {[%clk 0:02:09]}  Bb7 {[%clk 0:02:00]} 15. g5 {[%clk 0:02:02]}  hxg5 {[%clk 0:01:59]} 16. hxg5 {[%clk 0:02:02]}  Rc8 {[%clk 0:01:57]} 17. Qb1 {[%clk 0:02:02]}  Rxc1+ {[%clk 0:01:56]} 18. Qxc1 {[%clk 0:02:02]}  g6 {[%clk 0:01:53]} 19. Ke2 {[%clk 0:01:57]}  Bd6 {[%clk 0:01:52]} 20. Rh1 {[%clk 0:01:56]}  Rxh1 {[%clk 0:01:48]} 21. Qxh1 {[%clk 0:01:57]}  Qe7 {[%clk 0:01:33]} 22. Qh8+ {[%clk 0:01:37]}  Qf8 {[%clk 0:01:32]} 23. Qh7 {[%clk 0:01:38]}  Bc6 {[%clk 0:01:08]} 24. Nh4 {[%clk 0:01:25]}  Qe7 {[%clk 0:00:59]} 25. f4 {[%clk 0:01:11]}  Nf8 {[%clk 0:00:57]} 26. Qg7 {[%clk 0:01:09]}  b4 {[%clk 0:00:54]} 27. Nf3 {[%clk 0:00:58]}  Qb7 {[%clk 0:00:51]} 28. Ne5 {[%clk 0:00:53]}  Bb5 {[%clk 0:00:48]} 29. Bxb5+ {[%clk 0:00:48]}  Qxb5+ {[%clk 0:00:48]} 30. Kf2 {[%clk 0:00:49]}  Bxe5 {[%clk 0:00:47]} 31. Qxe5 {[%clk 0:00:50]}  a5 {[%clk 0:00:40]} 32. Qc7 {[%clk 0:00:46]}  Nd7 {[%clk 0:00:38]} 33. a3 {[%clk 0:00:37]}  Qd3 {[%clk 0:00:38]} 34. Be1 {[%clk 0:00:37]}  Qb1 {[%clk 0:00:34]} 35. axb4 {[%clk 0:00:32]}  Qxb2+ {[%clk 0:00:34]} 36. Kf3 {[%clk 0:00:31]}  a4 {[%clk 0:00:27]} 37. Qd6 {[%clk 0:00:15]}  a3 {[%clk 0:00:19]} 38. b5 {[%clk 0:00:14]}  a2 {[%clk 0:00:19]} 39. Bb4 {[%clk 0:00:15]}  Qxb4 {[%clk 0:00:17]} 40. Qxb4 {[%clk 0:00:16]}  a1=Q {[%clk 0:00:17]} 41. b6 {[%clk 0:00:14]}  Qa8 {[%clk 0:00:15]} 42. b7 {[%clk 0:00:13]}  Qb8 {[%clk 0:00:16]} 43. Qb5 {[%clk 0:00:13]}  Kd8 {[%clk 0:00:14]} 44. Qc6 {[%clk 0:00:13]}  Qc7 {[%clk 0:00:12]} 45. Qa6 {[%clk 0:00:12]}  Nb8 {[%clk 0:00:12]} 46. Qb5 {[%clk 0:00:12]}  Qc6 {[%clk 0:00:12]} 47. Qb4 {[%clk 0:00:12]}  Ke8 {[%clk 0:00:12]} 48. Kg3 {[%clk 0:00:11]}  Qc7 {[%clk 0:00:10]} 49. Qb5+ {[%clk 0:00:10]}  Qd7 {[%clk 0:00:10]} 50. Qb6 {[%clk 0:00:10]}  Ke7 {[%clk 0:00:05]} 51. Qc5+ {[%clk 0:00:09]}  Qd6 {[%clk 0:00:04]} 52. Qc8 {[%clk 0:00:09]}  Nd7 {[%clk 0:00:02]} 53. Kf3 {[%clk 0:00:09]}  Qb8 {[%clk 0:00:02]} 54. Qc6 {[%clk 0:00:09]}  Ke8 {[%clk 0:00:02]} 55. Qc8+ {[%clk 0:00:08]}  Ke7 {[%clk 0:00:02]} 56. Qc6 {[%clk 0:00:09]}  Kd8 {[%clk 0:00:03]} 57. Qb5 {[%clk 0:00:06]}  Kc7 {[%clk 0:00:03]} 58. Qa5+ {[%clk 0:00:02]}  Kxb7 {[%clk 0:00:03]} 59. Qa4 {[%clk 0:00:03]}  Kc8 {[%clk 0:00:03]} 60. Qc6+ {[%clk 0:00:03]}  Qc7 {[%clk 0:00:03]} 61. Qa8+ {[%clk 0:00:03]}  Nb8 {[%clk 0:00:03]} 62. Qa4 {[%clk 0:00:04]}  Qd7 {[%clk 0:00:03]} 63. Qb4 {[%clk 0:00:04]}  Nc6 {[%clk 0:00:03]} 64. Qb6 {[%clk 0:00:04]}  Qc7 {[%clk 0:00:03]} 65. Qc5 {[%clk 0:00:04]}  Kd7 {[%clk 0:00:03]} 66. Qf8 {[%clk 0:00:04]}  Nd8 {[%clk 0:00:03]} 67. Qb4 {[%clk 0:00:05]}  Qd6 {[%clk 0:00:03]} 68. Qb5+ {[%clk 0:00:05]}  Qc6 {[%clk 0:00:03]} 69. Qa5 {[%clk 0:00:05]}  Ke7 {[%clk 0:00:03]} 70. Qa7+ {[%clk 0:00:05]}  Qd7 {[%clk 0:00:03]} 71. Qc5+ {[%clk 0:00:05]}  Qd6 {[%clk 0:00:04]} 72. Qb5 {[%clk 0:00:06]}  Kf8 {[%clk 0:00:03]} 73. Kf2 {[%clk 0:00:06]}  Kg7 {[%clk 0:00:04]} 74. Qe8 {[%clk 0:00:04]}  Qf8 {[%clk 0:00:03]} 75. Qd7 {[%clk 0:00:04]}  Kg8 {[%clk 0:00:03]} 76. f5 {[%clk 0:00:04]}  gxf5 {[%clk 0:00:02]} 77. Kf3 {[%clk 0:00:04]}  Kg7 {[%clk 0:00:03]} 78. Kf4 {[%clk 0:00:04]}  Qh8 {[%clk 0:00:03]} 79. Qe7 {[%clk 0:00:03]}  Qh2+ {[%clk 0:00:02]} 80. Kf3 {[%clk 0:00:03]}  Qh3+ {[%clk 0:00:02]} 81. Ke2 {[%clk 0:00:03]}  Qg4+ {[%clk 0:00:02]} 82. Kd2 {[%clk 0:00:03]}  Qg2+ {[%clk 0:00:02]} 83. Kc3 {[%clk 0:00:04]}  Qf3 {[%clk 0:00:02]} 84. Qf6+ {[%clk 0:00:04]}  Kg8 {[%clk 0:00:02]} 85. Qxd8+ {[%clk 0:00:04]}  Kg7 {[%clk 0:00:02]} 86. Qf6+ {[%clk 0:00:05]}  Kg8 {[%clk 0:00:02]} 87. Qd8+ {[%clk 0:00:02]}  Kg7 {[%clk 0:00:02]} 88. Qf6+ {[%clk 0:00:03]}  Kg8 {[%clk 0:00:03]} 89. Qd8+ {[%clk 0:00:02]} 1/2-1/2


[Site "https://www.chess.com"]

[Event "Titled Tuesday Blitz November 30 2021"]
[White "Papasimakopoulos, Alexandros"]
[Black "Azarov, Sergei"]
[WhiteFideId "4244125"]
[BlackFideId "13501470"]
[WhiteElo "2394"]
[BlackElo "2494"]
[Result "1-0"]
[Round "08"]
[TimeControl "180+1"]
[Date "2021.11.30"]
[WhiteClock "0:00:56"]
[BlackClock "0:00:02"]

1. d4 {[%clk 0:02:56]}  Nf6 {[%clk 0:02:59]} 2. c4 {[%clk 0:02:56]}  e6 {[%clk 0:02:57]} 3. Nc3 {[%clk 0:02:56]}  Bb4 {[%clk 0:02:56]} 4. Qc2 {[%clk 0:02:56]}  c5 {[%clk 0:02:56]} 5. dxc5 {[%clk 0:02:56]}  Na6 {[%clk 0:02:55]} 6. a3 {[%clk 0:02:56]}  Bxc5 {[%clk 0:02:43]} 7. Nf3 {[%clk 0:02:56]}  O-O {[%clk 0:02:41]} 8. b4 {[%clk 0:02:51]}  Be7 {[%clk 0:02:40]} 9. e3 {[%clk 0:02:49]}  d5 {[%clk 0:02:35]} 10. Bb2 {[%clk 0:02:43]}  Bd7 {[%clk 0:02:15]} 11. cxd5 {[%clk 0:02:40]}  exd5 {[%clk 0:02:04]} 12. Be2 {[%clk 0:02:34]}  Rc8 {[%clk 0:01:59]} 13. Qb3 {[%clk 0:02:28]}  Qb6 {[%clk 0:01:52]} 14. O-O {[%clk 0:02:26]}  Nc5 {[%clk 0:01:48]} 15. Qa2 {[%clk 0:02:21]}  Nce4 {[%clk 0:01:46]} 16. Nxd5 {[%clk 0:02:22]}  Nxd5 {[%clk 0:01:37]} 17. Qxd5 {[%clk 0:02:22]}  Bc6 {[%clk 0:01:33]} 18. Qd4 {[%clk 0:02:19]}  Bf6 {[%clk 0:01:15]} 19. Qxb6 {[%clk 0:02:18]}  axb6 {[%clk 0:01:16]} 20. Bxf6 {[%clk 0:02:17]}  Nxf6 {[%clk 0:01:17]} 21. Rac1 {[%clk 0:02:13]}  Ra8 {[%clk 0:01:14]} 22. Nd4 {[%clk 0:02:10]}  Bd5 {[%clk 0:00:55]} 23. Nb5 {[%clk 0:02:07]}  Bc6 {[%clk 0:00:53]} 24. Ra1 {[%clk 0:02:01]}  Bxb5 {[%clk 0:00:49]} 25. Bxb5 {[%clk 0:02:01]}  Rfd8 {[%clk 0:00:43]} 26. Be2 {[%clk 0:02:00]}  Ne4 {[%clk 0:00:30]} 27. Rfd1 {[%clk 0:01:47]}  Rxd1+ {[%clk 0:00:27]} 28. Bxd1 {[%clk 0:01:48]}  f5 {[%clk 0:00:21]} 29. f3 {[%clk 0:01:22]}  Nc3 {[%clk 0:00:16]} 30. Bc2 {[%clk 0:01:16]}  g6 {[%clk 0:00:15]} 31. Kf2 {[%clk 0:01:17]}  Kg7 {[%clk 0:00:13]} 32. Ke1 {[%clk 0:01:16]}  Rd8 {[%clk 0:00:10]} 33. a4 {[%clk 0:01:13]}  Kf6 {[%clk 0:00:07]} 34. Ra3 {[%clk 0:01:13]}  Nd5 {[%clk 0:00:07]} 35. Rd3 {[%clk 0:01:10]}  Ke7 {[%clk 0:00:06]} 36. b5 {[%clk 0:01:01]}  Rc8 {[%clk 0:00:04]} 37. Rxd5 {[%clk 0:00:57]}  Rxc2 {[%clk 0:00:04]} 38. Rd2 {[%clk 0:00:57]}  Rc4 {[%clk 0:00:03]} 39. Rd4 {[%clk 0:00:56]}  Rc2 {[%clk 0:00:03]} 40. Kf1 {[%clk 0:00:56]}  Ra2 {[%clk 0:00:02]} 41. h4 {[%clk 0:00:56]} 1-0


[Site "https://www.chess.com"]

[Event "Titled Tuesday Blitz November 30 2021"]
[White "Rasulov, Vugar"]
[Black "Shipov, Sergei"]
[WhiteFideId "13402390"]
[BlackFideId "4113624"]
[WhiteElo "2560"]
[BlackElo "2770"]
[Result "1-0"]
[Round "08"]
[TimeControl "180+1"]
[Date "2021.11.30"]
[WhiteClock "0:00:45"]
[BlackClock "0:01:10"]

1. d4 {[%clk 0:03:00]}  d5 {[%clk 0:02:57]} 2. c4 {[%clk 0:03:01]}  dxc4 {[%clk 0:02:57]} 3. Nf3 {[%clk 0:03:01]}  a6 {[%clk 0:02:56]} 4. g3 {[%clk 0:03:01]}  b5 {[%clk 0:02:56]} 5. Bg2 {[%clk 0:03:01]}  Bb7 {[%clk 0:02:56]} 6. O-O {[%clk 0:03:02]}  c5 {[%clk 0:02:57]} 7. a4 {[%clk 0:02:54]}  b4 {[%clk 0:02:54]} 8. Nbd2 {[%clk 0:02:52]}  cxd4 {[%clk 0:02:46]} 9. Nxc4 {[%clk 0:02:51]}  Nf6 {[%clk 0:02:45]} 10. Qxd4 {[%clk 0:02:46]}  Qxd4 {[%clk 0:02:44]} 11. Nxd4 {[%clk 0:02:47]}  Bxg2 {[%clk 0:02:44]} 12. Kxg2 {[%clk 0:02:48]}  e6 {[%clk 0:02:42]} 13. Rd1 {[%clk 0:02:41]}  Be7 {[%clk 0:02:36]} 14. Bf4 {[%clk 0:02:36]}  O-O {[%clk 0:02:27]} 15. Nb6 {[%clk 0:02:27]}  Ra7 {[%clk 0:02:27]} 16. Bxb8 {[%clk 0:02:25]}  Rxb8 {[%clk 0:02:26]} 17. Nc6 {[%clk 0:02:23]}  Rxb6 {[%clk 0:02:25]} 18. Nxa7 {[%clk 0:02:23]}  Rb7 {[%clk 0:02:15]} 19. Nc6 {[%clk 0:02:22]}  Bf8 {[%clk 0:02:15]} 20. Rd8 {[%clk 0:02:21]}  g6 {[%clk 0:02:15]} 21. Rb8 {[%clk 0:02:17]}  Rc7 {[%clk 0:02:10]} 22. Nxb4 {[%clk 0:02:17]}  a5 {[%clk 0:02:10]} 23. Nd3 {[%clk 0:02:16]}  Rc2 {[%clk 0:02:10]} 24. Rc1 {[%clk 0:02:09]}  Rxe2 {[%clk 0:01:54]} 25. Rcc8 {[%clk 0:02:04]}  Nd7 {[%clk 0:01:54]} 26. Ra8 {[%clk 0:02:05]}  Rd2 {[%clk 0:01:50]} 27. Ne1 {[%clk 0:01:52]}  Kg7 {[%clk 0:01:46]} 28. Rc2 {[%clk 0:01:35]}  Rd1 {[%clk 0:01:41]} 29. Nf3 {[%clk 0:01:35]}  Bb4 {[%clk 0:01:42]} 30. Rd8 {[%clk 0:01:33]}  Rd5 {[%clk 0:01:38]} 31. h4 {[%clk 0:01:28]}  h6 {[%clk 0:01:36]} 32. Rcc8 {[%clk 0:01:27]}  Be7 {[%clk 0:01:35]} 33. Re8 {[%clk 0:01:22]}  Nb6 {[%clk 0:01:31]} 34. Rb8 {[%clk 0:01:13]}  Bc5 {[%clk 0:01:31]} 35. g4 {[%clk 0:01:09]}  g5 {[%clk 0:01:26]} 36. Rg8+ {[%clk 0:01:06]}  Kf6 {[%clk 0:01:26]} 37. Rh8 {[%clk 0:01:07]}  gxh4 {[%clk 0:01:23]} 38. Rxh6+ {[%clk 0:01:07]}  Kg7 {[%clk 0:01:21]} 39. Rbh8 {[%clk 0:01:01]}  Nxa4 {[%clk 0:01:20]} 40. R6h7+ {[%clk 0:00:58]}  Kf6 {[%clk 0:01:19]} 41. g5+ {[%clk 0:00:57]}  Kg6 {[%clk 0:01:18]} 42. Rh6+ {[%clk 0:00:50]}  Kg7 {[%clk 0:01:17]} 43. b3 {[%clk 0:00:45]}  Nc3 {[%clk 0:01:17]} 44. Rxh4 {[%clk 0:00:46]}  Rf5 {[%clk 0:01:10]} 45. R4h7+ {[%clk 0:00:45]} 1-0


[Site "https://www.chess.com"]

[Event "Titled Tuesday Blitz November 30 2021"]
[White "Rustemov, Alexander"]
[Black "Pichot, Alan"]
[WhiteFideId "4119002"]
[BlackFideId "110973"]
[WhiteElo "2804"]
[BlackElo "2600"]
[Result "0-1"]
[Round "08"]
[TimeControl "180+1"]
[Date "2021.11.30"]
[WhiteClock "0:00:01"]
[BlackClock "0:00:31"]

1. d4 {[%clk 0:03:00]}  Nf6 {[%clk 0:02:59]} 2. Bg5 {[%clk 0:03:00]}  d5 {[%clk 0:02:58]} 3. e3 {[%clk 0:03:00]}  c6 {[%clk 0:02:57]} 4. Nd2 {[%clk 0:02:51]}  Bf5 {[%clk 0:02:54]} 5. Bxf6 {[%clk 0:02:49]}  gxf6 {[%clk 0:02:53]} 6. Bd3 {[%clk 0:02:33]}  Bg6 {[%clk 0:02:52]} 7. Ne2 {[%clk 0:02:26]}  e6 {[%clk 0:02:52]} 8. O-O {[%clk 0:02:25]}  Bd6 {[%clk 0:02:51]} 9. Nf3 {[%clk 0:02:18]}  Nd7 {[%clk 0:02:51]} 10. c4 {[%clk 0:02:15]}  O-O {[%clk 0:02:40]} 11. Rc1 {[%clk 0:02:14]}  Qa5 {[%clk 0:02:28]} 12. a3 {[%clk 0:02:12]}  Rac8 {[%clk 0:02:25]} 13. c5 {[%clk 0:01:50]}  Bb8 {[%clk 0:02:17]} 14. b4 {[%clk 0:01:48]}  Qc7 {[%clk 0:02:17]} 15. Ng3 {[%clk 0:01:40]}  f5 {[%clk 0:02:12]} 16. Ne2 {[%clk 0:01:30]}  Kh8 {[%clk 0:02:01]} 17. Nf4 {[%clk 0:01:28]}  Rg8 {[%clk 0:02:02]} 18. g3 {[%clk 0:01:28]}  Nf6 {[%clk 0:01:59]} 19. Ne5 {[%clk 0:01:27]}  Qe7 {[%clk 0:01:59]} 20. f3 {[%clk 0:01:23]}  Bxe5 {[%clk 0:01:55]} 21. dxe5 {[%clk 0:01:23]}  Nd7 {[%clk 0:01:56]} 22. Nxg6+ {[%clk 0:01:20]}  hxg6 {[%clk 0:01:29]} 23. f4 {[%clk 0:01:20]}  f6 {[%clk 0:01:30]} 24. exf6 {[%clk 0:01:18]}  Qxf6 {[%clk 0:01:31]} 25. Qd2 {[%clk 0:01:13]}  Kg7 {[%clk 0:01:30]} 26. a4 {[%clk 0:01:12]}  e5 {[%clk 0:01:26]} 27. b5 {[%clk 0:00:51]}  Rce8 {[%clk 0:01:24]} 28. Rf2 {[%clk 0:00:41]}  Re7 {[%clk 0:01:24]} 29. Qa5 {[%clk 0:00:40]}  exf4 {[%clk 0:01:18]} 30. exf4 {[%clk 0:00:40]}  Qd4 {[%clk 0:01:18]} 31. Bf1 {[%clk 0:00:36]}  Nxc5 {[%clk 0:00:59]} 32. Qxa7 {[%clk 0:00:29]}  Nb3 {[%clk 0:00:45]} 33. Qxd4+ {[%clk 0:00:28]}  Nxd4 {[%clk 0:00:46]} 34. bxc6 {[%clk 0:00:24]}  bxc6 {[%clk 0:00:47]} 35. a5 {[%clk 0:00:25]}  Ra8 {[%clk 0:00:37]} 36. a6 {[%clk 0:00:25]}  Rc7 {[%clk 0:00:37]} 37. Ra2 {[%clk 0:00:18]}  Kf6 {[%clk 0:00:35]} 38. Kf2 {[%clk 0:00:15]}  Ke7 {[%clk 0:00:33]} 39. Ra4 {[%clk 0:00:10]}  Ne6 {[%clk 0:00:31]} 40. Bg2 {[%clk 0:00:02]}  Kd6 {[%clk 0:00:31]} 41. Rca1 {[%clk 0:00:02]}  Nc5 {[%clk 0:00:31]} 42. R4a3 {[%clk 0:00:01]}  Rca7 {[%clk 0:00:31]} 0-1


[Site "https://www.chess.com"]

[Event "Titled Tuesday Blitz November 30 2021"]
[White "Siva Mahadevan"]
[Black "Mirzoev, Azer"]
[WhiteFideId "25043153"]
[BlackFideId "13400304"]
[WhiteElo "2203"]
[BlackElo "2525"]
[Result "1-0"]
[Round "08"]
[TimeControl "180+1"]
[Date "2021.11.30"]
[WhiteClock "0:01:24"]
[BlackClock "0:00:01"]

1. e4 {[%clk 0:03:00]}  c6 {[%clk 0:02:59]} 2. d4 {[%clk 0:02:59]}  d5 {[%clk 0:03:00]} 3. e5 {[%clk 0:03:00]}  Bf5 {[%clk 0:03:00]} 4. c4 {[%clk 0:03:00]}  e6 {[%clk 0:02:59]} 5. Nc3 {[%clk 0:03:01]}  Nd7 {[%clk 0:03:00]} 6. Nge2 {[%clk 0:03:01]}  dxc4 {[%clk 0:02:58]} 7. Ng3 {[%clk 0:03:01]}  Bd3 {[%clk 0:02:59]} 8. Bxd3 {[%clk 0:03:01]}  cxd3 {[%clk 0:03:00]} 9. O-O {[%clk 0:03:02]}  Ne7 {[%clk 0:02:57]} 10. Be3 {[%clk 0:03:00]}  Nb6 {[%clk 0:02:17]} 11. Qxd3 {[%clk 0:03:00]}  Ned5 {[%clk 0:02:16]} 12. Nce4 {[%clk 0:03:00]}  Be7 {[%clk 0:02:15]} 13. h4 {[%clk 0:02:55]}  O-O {[%clk 0:02:08]} 14. h5 {[%clk 0:02:55]}  h6 {[%clk 0:01:56]} 15. Rad1 {[%clk 0:02:48]}  Nxe3 {[%clk 0:01:50]} 16. fxe3 {[%clk 0:02:47]}  Nd5 {[%clk 0:01:51]} 17. Rf3 {[%clk 0:02:45]}  c5 {[%clk 0:01:40]} 18. Rdf1 {[%clk 0:02:43]}  cxd4 {[%clk 0:01:39]} 19. exd4 {[%clk 0:02:43]}  Qb6 {[%clk 0:01:34]} 20. R3f2 {[%clk 0:02:16]}  Rad8 {[%clk 0:01:33]} 21. a3 {[%clk 0:02:15]}  Rd7 {[%clk 0:01:28]} 22. Nc3 {[%clk 0:02:02]}  Nxc3 {[%clk 0:01:19]} 23. bxc3 {[%clk 0:02:03]}  Qb3 {[%clk 0:01:05]} 24. Ne4 {[%clk 0:02:00]}  Rc7 {[%clk 0:00:55]} 25. Qg3 {[%clk 0:01:58]}  b5 {[%clk 0:00:46]} 26. d5 {[%clk 0:01:47]}  exd5 {[%clk 0:00:27]} 27. e6 {[%clk 0:01:48]}  dxe4 {[%clk 0:00:14]} 28. exf7+ {[%clk 0:01:37]}  Kh8 {[%clk 0:00:08]} 29. Qxc7 {[%clk 0:01:37]}  Bh4 {[%clk 0:00:06]} 30. Rf4 {[%clk 0:01:28]}  Bg5 {[%clk 0:00:06]} 31. Rxe4 {[%clk 0:01:28]}  Qxa3 {[%clk 0:00:04]} 32. Re8 {[%clk 0:01:28]}  a5 {[%clk 0:00:04]} 33. Qc8 {[%clk 0:01:27]}  Be7 {[%clk 0:00:02]} 34. Rxf8+ {[%clk 0:01:23]}  Bxf8 {[%clk 0:00:03]} 35. Re1 {[%clk 0:01:23]}  a4 {[%clk 0:00:02]} 36. Qxf8+ {[%clk 0:01:23]}  Qxf8 {[%clk 0:00:01]} 37. Re8 {[%clk 0:01:24]} 1-0


[Site "https://www.chess.com"]

[Event "Titled Tuesday Blitz November 30 2021"]
[White "Szpar, Milosz"]
[Black "Galchenko, Matvey"]
[WhiteFideId "1184989"]
[BlackFideId "24175480"]
[WhiteElo "2285"]
[BlackElo "2453"]
[Result "1-0"]
[Round "08"]
[TimeControl "180+1"]
[Date "2021.11.30"]
[WhiteClock "0:00:05"]
[BlackClock "0:00:24"]

1. e4 {[%clk 0:03:00]}  e6 {[%clk 0:02:55]} 2. Nf3 {[%clk 0:02:59]}  d5 {[%clk 0:02:55]} 3. e5 {[%clk 0:02:59]}  c5 {[%clk 0:02:56]} 4. b4 {[%clk 0:02:59]}  cxb4 {[%clk 0:02:57]} 5. a3 {[%clk 0:02:59]}  Nc6 {[%clk 0:02:58]} 6. d4 {[%clk 0:02:54]}  Bd7 {[%clk 0:02:56]} 7. axb4 {[%clk 0:02:52]}  Bxb4+ {[%clk 0:02:56]} 8. c3 {[%clk 0:02:52]}  Be7 {[%clk 0:02:57]} 9. Bd3 {[%clk 0:02:51]}  b5 {[%clk 0:02:58]} 10. O-O {[%clk 0:02:23]}  Na5 {[%clk 0:02:54]} 11. Re1 {[%clk 0:02:12]}  Nc4 {[%clk 0:02:48]} 12. Nbd2 {[%clk 0:02:08]}  a5 {[%clk 0:02:37]} 13. Nf1 {[%clk 0:02:08]}  b4 {[%clk 0:02:37]} 14. cxb4 {[%clk 0:01:58]}  Bxb4 {[%clk 0:02:38]} 15. Re2 {[%clk 0:01:54]}  Ne7 {[%clk 0:02:37]} 16. Ng3 {[%clk 0:01:53]}  h5 {[%clk 0:02:33]} 17. Bg5 {[%clk 0:01:49]}  Qb6 {[%clk 0:02:31]} 18. Rb1 {[%clk 0:01:44]}  Rc8 {[%clk 0:02:21]} 19. h4 {[%clk 0:01:35]}  Bb5 {[%clk 0:02:20]} 20. Ra2 {[%clk 0:01:20]}  Nc6 {[%clk 0:02:08]} 21. Bf1 {[%clk 0:01:11]}  Be7 {[%clk 0:01:42]} 22. Bxe7 {[%clk 0:01:03]}  Kxe7 {[%clk 0:01:39]} 23. Qc1 {[%clk 0:01:03]}  Nxd4 {[%clk 0:01:34]} 24. Qg5+ {[%clk 0:00:57]}  Kf8 {[%clk 0:01:34]} 25. Nxd4 {[%clk 0:00:55]}  Qxd4 {[%clk 0:01:35]} 26. Rxb5 {[%clk 0:00:56]}  Nxe5 {[%clk 0:01:26]} 27. Rc2 {[%clk 0:00:35]}  Re8 {[%clk 0:01:14]} 28. Rb7 {[%clk 0:00:32]}  Rh6 {[%clk 0:01:01]} 29. Rd2 {[%clk 0:00:20]}  Qc3 {[%clk 0:01:00]} 30. Re2 {[%clk 0:00:10]}  Nc4 {[%clk 0:00:37]} 31. Nf5 {[%clk 0:00:10]}  Rh7 {[%clk 0:00:29]} 32. Re7 {[%clk 0:00:05]}  Rb8 {[%clk 0:00:25]} 33. R7xe6 {[%clk 0:00:04]}  fxe6 {[%clk 0:00:23]} 34. Qe7+ {[%clk 0:00:04]}  Kg8 {[%clk 0:00:23]} 35. Qxe6+ {[%clk 0:00:05]}  Kh8 {[%clk 0:00:24]} 36. Qe8+ {[%clk 0:00:05]} 1-0


[Site "https://www.chess.com"]